bitfinex-derivatives/quotes_SOLF0:USTF0_20240827
["timestamp","ask_amount","ask_price","bid_price","bid_amount"]
[1724746231011,7.78,157.6,157.58,0.04848374]
[1724746232321,3.1719,157.59,157.58,0.04848374]
[1724746235518,3.1717,157.61,157.58,0.04848374]
[1724746235825,7.78,157.59,157.58,0.04848374]
[1724746239923,7.78,157.59,157.52,1.2997]
[1724746240128,3.86,157.63,157.52,1.2997]
[1724746240129,7.78,157.56,157.52,1.2997]
[1724746241029,7.8276428,157.56,157.53,3.1731]
[1724746241226,0.0476428,157.56,157.52,9.12588047]
[1724746241928,0.0476428,157.56,157.53,3.173]
[1724746245319,0.0476428,157.56,157.52,1.34588047]
[1724746245320,0.0476428,157.56,157.52,9.12588047]
[1724746246032,0.0476428,157.56,157.54,3.1728]
[1724746246828,0.0476428,157.56,157.52,4.51908047]
[1724746247031,7.8276428,157.56,157.52,1.34588047]
[1724746247330,7.78,157.54,157.52,0.04618047]
[1724746247531,10.953,157.54,157.52,0.04618047]
[1724746249833,7.78,157.54,157.52,0.04618047]
[1724746250235,3.1728,157.55,157.52,3.21948047]
[1724746251240,7.8276428,157.56,157.52,0.04618047]
[1724746251241,0.0476428,157.56,157.52,0.04618047]
[1724746251425,7.8276428,157.56,157.52,0.04618047]
[1724746251629,0.0476428,157.56,157.52,0.04618047]
[1724746253336,0.0476428,157.56,157.53,3.1731]
[1724746254036,7.8276428,157.56,157.53,3.1731]
[1724746254331,7.78,157.54,157.52,0.04618047]
[1724746254725,10.9532,157.53,157.52,0.04618047]
[1724746255032,7.78,157.53,157.52,0.04618047]
[1724746257432,10.9532,157.53,157.52,0.04618047]
[1724746261731,10.9532,157.53,157.49,3.14266504]
[1724746261732,10.9532,157.53,157.49,3.14266448]
[1724746261929,7.78,157.5,157.47,3.1743]
[1724746262227,1.3144,157.56,157.48,3.1426914]
[1724746262429,1.3144,157.56,157.44,2.5591]
[1724746262430,10.954,157.49,157.44,2.5591]
[1724746262638,7.78,157.46,157.44,2.5591]
[1724746262947,7.78,157.46,157.45,0.04455768]
[1724746266146,10.9546,157.46,157.45,0.04455768]
[1724746266341,7.78,157.46,157.36,3.86]
[1724746266552,3.86,157.47,157.36,3.86]
[1724746266553,7.78,157.42,157.36,3.86]
[1724746266735,7.78,157.42,157.39,3.1758]
[1724746267348,7.8202439,157.42,157.38,3.1761]
[1724746268049,0.0402439,157.42,157.39,3.1759]
[1724746269147,0.0402439,157.42,157.4,3.1757]
[1724746269549,0.0402439,157.42,157.36,19.52]
[1724746270443,0.0402439,157.42,157.4,3.1756]
[1724746271752,0.0402439,157.42,157.41,3.1756]
[1724746274555,0.0402439,157.42,157.4,3.1757]
[1724746275049,0.0402439,157.42,157.38,19.52]
[1724746275259,0.3207,157.54,157.4,19.52]
[1724746275548,19.52,157.51,157.42,19.52]
[1724746275749,3.1738,157.5,157.46,3.1746]
[1724746275951,3.1738,157.5,157.43,2.6025]
[1724746276350,0.04210438,157.48,157.45,3.21503525]
[1724746276966,0.04210438,157.48,157.45,0.04033525]
[1724746278848,0.04210438,157.48,157.45,3.21503525]
[1724746279949,0.04210438,157.48,157.45,0.04033525]
[1724746280150,19.56210438,157.48,157.45,0.04033525]
[1724746281456,22.73630438,157.48,157.45,0.04033525]
[1724746281850,19.56210438,157.48,157.45,3.21493525]
[1724746282447,0.04210438,157.48,157.45,3.21493525]
[1724746282850,0.04210438,157.48,157.45,0.04033525]
[1724746285255,3.21640438,157.48,157.45,0.04033525]
[1724746289260,19.52,157.47,157.45,0.04033525]
[1724746289560,23.38,157.47,157.45,0.04033525]
[1724746289766,26.5544,157.47,157.45,0.04033525]
[1724746289952,7.81,157.46,157.45,0.04033525]
[1724746291966,14.8444,157.47,157.45,0.04033525]
[1724746293656,7.85210438,157.48,157.45,0.04033525]
[1724746295267,11.02630438,157.48,157.45,0.04033525]
[1724746295466,7.85210438,157.48,157.45,0.04033525]
[1724746297368,7.85210438,157.48,157.45,3.21503525]
[1724746299475,7.85210438,157.48,157.45,0.04033525]
[1724746300377,0.04210438,157.48,157.45,3.21513525]
[1724746307478,0.04210438,157.48,157.46,3.1744]
[1724746307673,0.9151,157.54,157.41,5.61614108]
[1724746307674,3.86,157.53,157.42,3.86]
[1724746307873,3.86,157.53,157.49,7.81]
[1724746308082,3.173,157.54,157.49,7.81]
[1724746308576,3.173,157.54,157.49,10.9838]
[1724746308782,0.04232702,157.53,157.5,0.04769832]
[1724746311876,3.21562702,157.53,157.5,0.04769832]
[1724746312080,7.81,157.52,157.5,0.04769832]
[1724746313190,0.04232702,157.53,157.5,0.04769832]
[1724746313893,0.04232702,157.53,157.5,3.22129832]
[1724746314290,7.85232702,157.53,157.5,0.04769832]
[1724746315087,0.04232702,157.53,157.5,0.04769832]
[1724746315589,0.04232702,157.53,157.51,3.1734]
[1724746317586,0.04232702,157.53,157.5,0.04769832]
[1724746317587,7.85232702,157.53,157.5,3.22139832]
[1724746317791,7.85232702,157.53,157.5,0.04769832]
[1724746319693,7.81,157.52,157.5,0.04769832]
[1724746320095,10.9835,157.52,157.5,0.04769832]
[1724746320396,7.81,157.52,157.5,0.04769832]
[1724746322190,10.9834,157.52,157.5,0.04769832]
[1724746322490,7.81,157.52,157.5,0.04769832]
[1724746322690,7.81,157.51,157.5,0.04769832]
[1724746323687,11.67,157.51,157.43,3.175]
[1724746323996,7.81,157.48,157.43,3.175]
[1724746324698,0.04474193,157.47,157.44,0.03921737]
[1724746325501,0.04474193,157.47,157.44,3.21411737]
[1724746326605,0.04474193,157.47,157.44,0.03921737]
[1724746329200,7.81,157.45,157.44,0.03921737]
[1724746329699,10.9848,157.45,157.44,0.03921737]
[1724746332402,11.02914193,157.47,157.44,0.03921737]
[1724746336209,3.1747,157.46,157.44,0.03921737]
[1724746338009,10.9847,157.46,157.44,0.03921737]
[1724746338510,3.1748,157.45,157.44,0.03921737]
[1724746341215,3.1748,157.45,157.39,1.292]
[1724746341216,3.175,157.44,157.39,1.292]
[1724746341408,7.81,157.42,157.39,1.292]
[1724746342009,7.85133943,157.42,157.39,1.292]
[1724746342609,0.04133943,157.42,157.39,4.4679]
[1724746342908,4.50551427,157.5,157.4,7.81]
[1724746343112,7.81,157.48,157.42,3.1752]
[1724746343308,7.81,157.48,157.41,7.81]
[1724746343512,7.81,157.48,157.41,10.9854]
[1724746343513,3.1746,157.46,157.41,10.9854]
[1724746344015,0.03998908,157.45,157.42,0.04133943]
[1724746346708,3.21478908,157.45,157.42,0.04133943]
[1724746350215,0.03998908,157.45,157.42,0.04133943]
[1724746351925,0.03998908,157.45,157.42,3.21673943]
[1724746362632,0.03998908,157.45,157.43,3.1752]
[1724746363631,0.03998908,157.45,157.42,3.21663943]
[1724746365830,3.19411427,157.5,157.42,7.85133943]
[1724746366038,3.86,157.51,157.42,7.85133943]
[1724746366232,7.81,157.5,157.42,7.81]
[1724746366532,7.81,157.5,157.44,3.1749]
[1724746366533,3.174,157.49,157.44,3.1749]
[1724746367331,0.04476818,157.48,157.45,0.04630962]
[1724746367736,7.81,157.47,157.45,0.04630962]
[1724746368134,10.9845,157.47,157.45,0.04630962]
[1724746368534,3.1745,157.47,157.45,0.04630962]
[1724746368943,11.02896818,157.48,157.45,0.04630962]
[1724746371346,7.85476818,157.48,157.45,0.04630962]
[1724746372339,11.02896818,157.48,157.45,0.04630962]
[1724746372645,3.21896818,157.48,157.45,0.04630962]
[1724746374134,7.81,157.47,157.45,0.04630962]
[1724746374339,7.81,157.46,157.45,0.04630962]
[1724746375442,10.9846,157.46,157.45,0.04630962]
[1724746378640,3.1746,157.46,157.45,0.04630962]
[1724746379344,7.81,157.47,157.45,0.04630962]
[1724746379345,3.1744,157.47,157.45,0.04630962]
[1724746381136,10.9846,157.46,157.45,0.04630962]
[1724746393650,3.175,157.44,157.39,2.5243]
[1724746393850,7.81,157.43,157.39,2.5243]
[1724746394250,3.1756,157.42,157.39,2.5243]
[1724746394451,7.81,157.41,157.39,1.2323]
[1724746394758,7.81,157.41,157.38,0.03501888]
[1724746399658,10.9856,157.41,157.38,0.03501888]
[1724746399854,7.81,157.41,157.38,0.03501888]
[1724746400354,10.9856,157.41,157.38,0.03501888]
[1724746400758,0.04224184,157.42,157.38,0.03501888]
[1724746401261,7.85224184,157.42,157.38,0.03501888]
[1724746402258,11.02774184,157.42,157.38,0.03501888]
[1724746402669,7.81,157.39,157.38,0.03501888]
[1724746402864,10.986,157.39,157.38,0.03501888]
[1724746403161,7.81,157.4,157.38,0.03501888]
[1724746403357,3.16078486,157.42,157.38,0.03501888]
[1724746403661,7.81,157.41,157.38,0.03501888]
[1724746407259,10.9857,157.41,157.38,0.03501888]
[1724746410461,7.81,157.4,157.38,0.03501888]
[1724746410763,10.9858,157.4,157.38,0.03501888]
[1724746410964,7.81,157.4,157.38,0.03501888]
[1724746414662,10.9858,157.4,157.38,0.03501888]
[1724746417167,7.81,157.39,157.38,0.03501888]
[1724746417772,10.986,157.39,157.38,0.03501888]
[1724746418559,10.986,157.39,157.32,1.2151]
[1724746418560,3.1769,157.35,157.32,1.2151]
[1724746418761,7.81,157.35,157.32,1.2151]
[1724746419867,7.85437948,157.35,157.32,1.2151]
[1724746420070,0.04437948,157.35,157.32,12.2023]
[1724746420363,0.04437948,157.35,157.32,1.2151]
[1724746421571,0.04437948,157.35,157.32,4.3923]
[1724746421760,0.04437948,157.35,157.32,12.2023]
[1724746428075,0.04437948,157.35,157.32,9.0251]
[1724746428280,7.81,157.41,157.34,7.81]
[1724746428575,3.86,157.43,157.38,7.81]
[1724746428768,3.86,157.46,157.4,7.81]
[1724746428964,7.81,157.46,157.4,7.81]
[1724746429171,0.04839987,157.45,157.41,0.04429954]
[1724746430575,3.22319987,157.45,157.41,0.04429954]
[1724746431365,11.03319987,157.45,157.41,0.04429954]
[1724746432970,7.85839987,157.45,157.41,0.04429954]
[1724746433174,0.04839987,157.45,157.41,0.04429954]
[1724746433377,0.04839987,157.45,157.42,7.81]
[1724746433679,0.04839987,157.45,157.42,10.9852]
[1724746433978,0.04839987,157.45,157.42,7.81]
[1724746434671,0.04839987,157.45,157.41,7.85429954]
[1724746435175,0.04839987,157.45,157.41,0.04429954]
[1724746437178,3.22319987,157.45,157.41,0.04429954]
[1724746438676,0.04839987,157.45,157.41,0.04429954]
[1724746439076,0.04839987,157.45,157.41,7.85429954]
[1724746439477,0.04839987,157.45,157.42,3.1753]
[1724746439875,0.04839987,157.45,157.41,11.02979954]
[1724746440775,3.175,157.44,157.41,0.04429954]
[1724746440975,7.85839987,157.45,157.41,0.04429954]
[1724746442281,11.03319987,157.45,157.41,0.04429954]
[1724746443171,3.22319987,157.45,157.41,0.04429954]
[1724746443974,0.04839987,157.45,157.41,11.02989954]
[1724746444175,0.04839987,157.45,157.43,7.81]
[1724746444572,0.04839987,157.45,157.42,3.1753]
[1724746444877,0.04839987,157.45,157.42,10.9853]
[1724746445183,0.04839987,157.45,157.42,7.81]
[1724746445780,0.04839987,157.45,157.42,3.1753]
[1724746446483,0.04839987,157.45,157.43,10.9851]
[1724746447679,0.04839987,157.45,157.42,3.1753]
[1724746448074,0.04839987,157.45,157.41,7.85429954]
[1724746448075,0.04839987,157.45,157.41,0.04429954]
[1724746448275,0.04839987,157.45,157.41,3.21979954]
[1724746448681,0.04839987,157.45,157.42,3.1753]
[1724746450286,0.04839987,157.45,157.43,7.81]
[1724746451085,0.04839987,157.45,157.43,10.9851]
[1724746452083,0.04839987,157.45,157.43,3.1751]
[1724746452388,0.04839987,157.45,157.42,12.2555]
[1724746455191,0.04839987,157.45,157.43,3.1751]
[1724746458086,0.04839987,157.45,157.42,12.2554]
[1724746459187,0.04839987,157.45,157.42,10.9852]
[1724746460692,0.04839987,157.45,157.41,0.04429954]
[1724746460693,3.22319987,157.45,157.41,3.21969954]
[1724746462090,0.04839987,157.45,157.41,0.04429954]
[1724746462295,7.85839987,157.45,157.41,0.04429954]
[1724746462889,3.175,157.44,157.41,0.04429954]
[1724746463493,7.85839987,157.45,157.41,0.04429954]
[1724746463689,10.9853,157.43,157.41,0.04429954]
[1724746463992,7.81,157.43,157.41,0.04429954]
[1724746464495,10.9852,157.43,157.41,0.04429954]
[1724746465591,3.1752,157.43,157.41,0.04429954]
[1724746465787,3.175,157.44,157.41,0.04429954]
[1724746468200,7.08329987,157.45,157.41,0.04429954]
[1724746468592,0.04839987,157.45,157.41,7.85429954]
[1724746469000,0.04839987,157.45,157.41,11.02979954]
[1724746469200,0.04839987,157.45,157.41,7.85429954]
[1724746470797,0.04839987,157.45,157.41,0.04429954]
[1724746471403,3.175,157.44,157.41,0.04429954]
[1724746473202,0.04839987,157.45,157.41,0.04429954]
[1724746473801,0.04839987,157.45,157.41,3.21989954]
[1724746475404,3.22319987,157.45,157.41,0.04429954]
[1724746475703,0.04839987,157.45,157.41,0.04429954]
[1724746477804,7.85839987,157.45,157.41,0.04429954]
[1724746478012,11.03329987,157.45,157.41,0.04429954]
[1724746479905,0.04839987,157.45,157.41,3.21979954]
[1724746480100,0.04839987,157.45,157.41,0.04429954]
[1724746481407,3.22319987,157.45,157.41,0.04429954]
[1724746483910,0.04839987,157.45,157.41,0.04429954]
[1724746484116,0.04839987,157.45,157.43,7.81]
[1724746484503,0.04839987,157.45,157.44,3.175]
[1724746485514,0.04839987,157.45,157.43,10.9851]
[1724746487212,0.04839987,157.45,157.44,10.985]
[1724746492315,1.2612,157.54,157.46,3.1744]
[1724746492514,3.1738,157.5,157.46,10.9844]
[1724746493421,0.04617623,157.5,157.47,10.9844]
[1724746493719,0.04617623,157.5,157.47,7.81]
[1724746493920,0.04617623,157.5,157.46,0.04310482]
[1724746494125,7.85617623,157.5,157.46,0.04310482]
[1724746494919,0.04617623,157.5,157.46,0.04310482]
[1724746495426,3.1741,157.49,157.46,0.04310482]
[1724746499617,3.1742,157.48,157.46,0.04310482]
[1724746501024,10.9842,157.48,157.46,0.04310482]
[1724746503132,3.18154988,157.5,157.46,0.04310482]
[1724746503133,10.9844,157.47,157.46,0.04310482]
[1724746514035,10.9844,157.47,157.38,3.7158]
[1724746514036,3.175,157.44,157.38,3.7158]
[1724746514237,7.81,157.43,157.39,3.14609659]
[1724746514437,7.81,157.43,157.38,3.7158]
[1724746514640,7.81,157.43,157.39,3.14609712]
[1724746514843,7.81,157.43,157.38,3.7158]
[1724746515139,0.04702179,157.42,157.39,3.19462402]
[1724746515336,0.04702179,157.42,157.39,3.22441403]
[1724746516141,7.81,157.4,157.39,0.04851403]
[1724746516543,10.9858,157.4,157.39,0.04851403]
[1724746517045,7.85702179,157.42,157.39,0.04851403]
[1724746517442,11.03242179,157.42,157.39,0.04851403]
[1724746518642,0.04702179,157.42,157.39,0.04851403]
[1724746519339,0.04702179,157.42,157.39,3.22431403]
[1724746519546,0.04702179,157.42,157.4,7.81]
[1724746520347,0.04702179,157.42,157.41,7.81]
[1724746521345,0.04702179,157.42,157.41,10.9856]
[1724746524649,0.04702179,157.42,157.4,10.9857]
[1724746526843,0.04702179,157.42,157.39,0.04851403]
[1724746527038,7.85702179,157.42,157.39,0.04851403]
[1724746527444,11.03242179,157.42,157.39,0.04851403]
[1724746529246,3.1758,157.4,157.39,0.04851403]
[1724746532239,3.1756,157.41,157.39,0.04851403]
[1724746532948,3.1758,157.4,157.39,0.04851403]
[1724746536256,7.81,157.41,157.31,7.81]
[1724746536459,7.81,157.37,157.32,3.14762429]
[1724746536646,10.9865,157.37,157.32,3.14762429]
[1724746537050,0.04473215,157.36,157.32,3.14762429]
[1724746537251,0.04473215,157.36,157.33,7.81]
[1724746537550,0.04473215,157.36,157.3,2.6065]
[1724746537856,0.04473215,157.36,157.31,10.95775116]
[1724746538053,0.04473215,157.36,157.31,7.81]
[1724746538249,0.04473215,157.36,157.32,3.1774]
[1724746539156,3.22133215,157.36,157.31,10.9875]
[1724746540152,0.04473215,157.36,157.33,7.81]
[1724746542551,0.04473215,157.36,157.32,3.1773]
[1724746544052,0.04473215,157.36,157.32,10.9873]
[1724746544250,0.04473215,157.36,157.32,3.1773]
[1724746548458,0.04473215,157.36,157.33,3.1772]
[1724746551356,0.04473215,157.36,157.32,3.1773]
[1724746552954,11.03143215,157.36,157.31,10.9875]
[1724746554363,7.81,157.35,157.3,2.6065]
[1724746554967,3.1771,157.34,157.3,2.6065]
[1724746555562,3.1771,157.34,157.3,5.7843]
[1724746555860,3.1772,157.33,157.3,2.6065]
[1724746556159,7.81,157.35,157.3,2.6065]
[1724746556462,0.04473215,157.36,157.34,7.81]
[1724746557166,3.1762,157.38,157.34,7.81]
[1724746557363,3.1762,157.38,157.34,10.9869]
[1724746558265,3.1762,157.38,157.34,11.02791598]
[1724746558266,3.21782368,157.38,157.34,11.02791598]
[1724746559464,0.04162368,157.38,157.34,7.85101598]
[1724746559661,0.04162368,157.38,157.36,7.81]
[1724746560465,0.04162368,157.38,157.36,10.9865]
[1724746560665,0.04162368,157.38,157.35,1.2644]
[1724746560962,0.04162368,157.38,157.35,7.81]
[1724746561462,0.04162368,157.38,157.37,7.81]
[1724746561663,7.81,157.44,157.37,7.81]
[1724746561862,11.67,157.44,157.37,7.81]
[1724746562267,3.1755,157.42,157.37,10.9863]
[1724746562471,3.86,157.44,157.37,7.81]
[1724746562770,0.04728632,157.42,157.39,0.04336497]
[1724746563071,7.81,157.41,157.39,0.04336497]
[1724746564080,3.1758,157.4,157.39,0.04336497]
[1724746566964,10.9858,157.4,157.39,0.04336497]
[1724746568367,3.1765,157.37,157.32,1.2644]
[1724746568569,7.81,157.36,157.32,1.2644]
[1724746569375,10.9866,157.36,157.32,1.2644]
[1724746569565,11.02679103,157.36,157.32,1.30500204]
[1724746571499,7.85019103,157.36,157.32,1.30500204]
[1724746571674,0.04019103,157.36,157.32,4.48220204]
[1724746574590,7.85019103,157.36,157.32,1.30500204]
[1724746575278,11.02679103,157.36,157.32,1.30500204]
[1724746575884,11.02679103,157.36,157.32,0.04060204]
[1724746582293,3.1768,157.35,157.32,0.04060204]
[1724746582891,11.02689103,157.36,157.32,3.21800204]
[1724746583195,0.04019103,157.36,157.32,7.85060204]
[1724746583588,0.04019103,157.36,157.33,3.1772]
[1724746584092,3.21679103,157.36,157.32,11.02800204]
[1724746584287,11.02679103,157.36,157.32,3.21800204]
[1724746584490,7.85019103,157.36,157.32,0.04060204]
[1724746584899,3.1768,157.35,157.32,0.04060204]
[1724746586398,7.81,157.35,157.32,0.04060204]
[1724746587900,0.04019103,157.36,157.32,0.04060204]
[1724746588088,7.81,157.35,157.32,0.04060204]
[1724746588295,7.81,157.33,157.32,0.04060204]
[1724746588496,10.9872,157.33,157.32,0.04060204]
[1724746592298,3.1777,157.31,157.26,1.2777]
[1724746592596,7.81,157.3,157.27,3.14923075]
[1724746592802,7.81,157.3,157.26,1.2777]
[1724746592997,7.81,157.3,157.27,3.14925473]
[1724746593196,7.81,157.3,157.26,1.2777]
[1724746593397,11.0297301,157.3,157.27,3.14925393]
[1724746593608,11.0297301,157.3,157.25,4.4639]
[1724746593795,11.0297301,157.3,157.26,3.14945957]
[1724746594000,7.81,157.29,157.27,3.14945957]
[1724746594207,7.81,157.29,157.25,4.4639]
[1724746594606,7.81,157.29,157.26,3.14945587]
[1724746594811,10.988,157.29,157.27,3.14945587]
[1724746595105,10.988,157.29,157.25,4.4639]
[1724746595315,10.988,157.29,157.26,3.14943366]
[1724746595503,10.988,157.29,157.27,3.14943366]
[1724746595705,10.988,157.29,157.25,1.2852]
[1724746596102,10.988,157.29,157.26,3.14943136]
[1724746596307,10.988,157.29,157.25,1.2852]
[1724746596504,10.988,157.29,157.26,3.14943136]
[1724746596709,3.2196301,157.3,157.27,3.14943136]
[1724746597006,0.0418301,157.3,157.28,3.1492509]
[1724746597204,0.0418301,157.3,157.27,3.1783]
[1724746597407,0.0418301,157.3,157.28,3.14928177]
[1724746597607,0.0418301,157.3,157.27,3.1783]
[1724746597822,0.0418301,157.3,157.28,3.14927747]
[1724746598108,7.81,157.36,157.29,3.14886682]
[1724746598317,14.88357474,157.36,157.28,7.81]
[1724746598516,3.1769,157.35,157.3,3.1778]
[1724746598818,14.88357474,157.36,157.3,3.1778]
[1724746599213,0.04096584,157.35,157.31,0.04231573]
[1724746599513,10.987,157.34,157.31,0.04231573]
[1724746603320,7.81,157.34,157.31,0.04231573]
[1724746604620,7.81,157.32,157.31,0.04231573]
[1724746614323,10.9874,157.32,157.31,0.04231573]
[1724746615624,7.81,157.32,157.26,3.14938796]
[1724746615826,7.81,157.27,157.26,3.14938955]
[1724746616223,7.81,157.27,157.2,3.16188021]
[1724746616523,0.04319565,157.25,157.21,6.32971494]
[1724746616718,0.04319565,157.25,157.22,3.15011494]
[1724746616923,0.04319565,157.25,157.23,3.15011494]
[1724746617121,0.04319565,157.25,157.24,3.15011494]
[1724746617323,7.85319565,157.25,157.24,3.15011494]
[1724746617625,7.85319565,157.25,157.2,3.16188021]
[1724746617814,7.85319565,157.25,157.21,3.15055851]
[1724746618015,7.81,157.24,157.22,3.15055851]
[1724746618216,7.81,157.24,157.19,3.18447748]
[1724746618623,7.81,157.24,157.2,3.15088628]
[1724746618929,7.81,157.24,157.21,3.15088628]
[1724746619323,10.989,157.24,157.18,3.6986]
[1724746619518,10.989,157.24,157.19,3.15102605]
[1724746619719,10.989,157.24,157.2,3.15102605]
[1724746619923,10.989,157.24,157.18,3.6986]
[1724746620119,10.989,157.24,157.19,3.15105005]
[1724746620329,10.989,157.24,157.2,6.33085005]
[1724746620532,10.989,157.24,157.2,3.1798]
[1724746620823,0.04319565,157.25,157.22,3.1794]
[1724746623633,0.04319565,157.25,157.23,3.1792]
[1724746623831,0.04319565,157.25,157.21,7.81]
[1724746624630,0.04319565,157.25,157.23,3.179]
[1724746625025,0.04319565,157.25,157.21,7.81]
[1724746626028,0.04319565,157.25,157.24,3.179]
[1724746626937,0.04319565,157.25,157.21,7.81]
[1724746627135,7.85319565,157.25,157.19,7.81]
[1724746627326,7.85319565,157.25,157.2,3.15075128]
[1724746628135,7.85319565,157.25,157.22,3.1794]
[1724746628539,0.04319565,157.25,157.22,3.1794]
[1724746630836,11.03199565,157.25,157.22,3.1794]
[1724746634042,11.03199565,157.25,157.21,3.1795]
[1724746634341,7.81,157.23,157.21,3.1795]
[1724746634839,7.81,157.23,157.2,3.1798]
[1724746636541,10.9893,157.23,157.2,3.1798]
[1724746637241,7.81,157.21,157.18,3.6986]
[1724746637741,7.85769437,157.21,157.18,4.4524]
[1724746637937,7.81,157.2,157.18,1.2723]
[1724746638139,7.81,157.2,157.13,7.81]
[1724746638442,0.04167324,157.18,157.14,3.15196511]
[1724746638842,0.04167324,157.18,157.15,1.2632]
[1724746639040,0.04167324,157.18,157.17,3.1804]
[1724746639436,0.04167324,157.18,157.15,1.2632]
[1724746639841,0.04167324,157.18,157.15,9.0732]
[1724746640036,0.04167324,157.18,157.17,3.1804]
[1724746640236,3.1796,157.22,157.16,10.2726]
[1724746640636,3.1796,157.22,157.18,3.18]
[1724746641244,3.22546288,157.22,157.18,3.22575396]
[1724746641439,0.04586288,157.22,157.19,7.81]
[1724746641645,3.9,157.26,157.21,7.81]
[1724746641942,3.9,157.26,157.23,3.1791]
[1724746641943,3.1786,157.26,157.23,3.1791]
[1724746642742,3.22572299,157.26,157.23,3.22448656]
[1724746643143,3.22572299,157.26,157.23,0.04538656]
[1724746643646,10.9888,157.25,157.23,0.04538656]
[1724746646148,7.81,157.25,157.23,0.04538656]
[1724746647442,10.9888,157.25,157.23,0.04538656]
[1724746648140,7.81,157.25,157.23,0.04538656]
[1724746653051,7.81,157.25,157.23,3.22458656]
[1724746653549,7.81,157.25,157.23,0.04538656]
[1724746653945,7.81,157.24,157.23,0.04538656]
[1724746654450,10.989,157.24,157.23,0.04538656]
[1724746655649,10.989,157.24,157.16,2.4626]
[1724746655650,7.81,157.24,157.16,2.4626]
[1724746655845,7.81,157.2,157.16,2.4626]
[1724746656749,7.8501452,157.2,157.16,2.50832795]
[1724746656952,7.8501452,157.2,157.17,3.1803]
[1724746658354,11.0300452,157.2,157.16,3.22632795]
[1724746658550,7.81,157.18,157.16,3.22632795]
[1724746664251,0.0401452,157.2,157.16,3.22632795]
[1724746664447,7.81,157.19,157.16,3.22632795]
[1724746665455,10.99,157.19,157.16,3.22632795]
[1724746665855,3.1804,157.17,157.16,0.04572795]
[1724746666867,3.1802,157.18,157.16,0.04572795]
[1724746667051,3.9601452,157.2,157.16,0.04572795]
[1724746667252,7.81,157.18,157.16,0.04572795]
[1724746667557,10.9903,157.18,157.16,0.04572795]
[1724746668561,7.81,157.17,157.16,0.04572795]
[1724746668954,10.9904,157.17,157.16,0.04572795]
[1724746669155,7.81,157.17,157.16,0.04572795]
[1724746669553,3.9601452,157.2,157.16,0.04572795]
[1724746669760,7.81,157.18,157.16,0.04572795]
[1724746671751,10.9904,157.18,157.16,0.04572795]
[1724746673261,3.1804,157.17,157.16,0.04572795]
[1724746673457,7.81,157.18,157.1,1.3303]
[1724746673671,7.81,157.14,157.1,1.3303]
[1724746674059,7.81,157.14,157.11,3.1816]
[1724746674457,7.85737055,157.14,157.11,3.1816]
[1724746674654,0.04737055,157.14,157.1,9.1403]
[1724746674860,0.04737055,157.14,157.11,1.2524]
[1724746675167,0.04737055,157.14,157.13,3.1812]
[1724746677466,0.04737055,157.14,157.11,2.5832]
[1724746677467,0.04737055,157.14,157.11,5.7648]
[1724746677667,7.85737055,157.14,157.11,2.5832]
[1724746678061,0.04737055,157.14,157.11,2.5832]
[1724746679163,0.04737055,157.14,157.13,3.1812]
[1724746680962,0.04737055,157.14,157.12,3.1814]
[1724746681369,0.04737055,157.14,157.11,2.5832]
[1724746681569,0.04737055,157.14,157.12,3.1813]
[1724746682162,0.04737055,157.14,157.13,3.1812]
[1724746683161,0.04737055,157.14,157.12,3.1813]
[1724746683368,7.85737055,157.14,157.12,3.1813]
[1724746683568,7.85737055,157.14,157.1,1.3303]
[1724746683768,7.85737055,157.14,157.11,3.1815]
[1724746684664,0.04737055,157.14,157.1,9.1403]
[1724746685067,0.04737055,157.14,157.11,3.1815]
[1724746685967,0.04737055,157.14,157.12,3.1814]
[1724746686666,7.85737055,157.14,157.1,1.3303]
[1724746687563,7.85737055,157.14,157.11,3.1816]
[1724746689173,0.04737055,157.14,157.11,3.1816]
[1724746689369,7.85737055,157.14,157.11,3.1816]
[1724746691180,7.85737055,157.14,157.1,1.3303]
[1724746691873,7.85737055,157.14,157.11,3.1815]
[1724746694588,0.04737055,157.14,157.11,3.1815]
[1724746694885,7.85737055,157.14,157.11,3.1815]